bitfinex-derivatives/quotes_ETHF0:USTF0_20250908
["timestamp","ask_amount","ask_price","bid_price","bid_amount"]
[1757291304129,0.6978,4302.5,4302.4,1.96912158]
[1757291304435,0.1993,4302.5,4302.4,1.96912158]
[1757291305334,0.4905,4302.5,4302.4,1.96912158]
[1757291305732,0.6978,4302.5,4302.4,1.96912158]
[1757291305931,0.1993,4302.8,4302.7,0.3994]
[1757291306134,0.236,4303.3,4302.7,0.9558]
[1757291306329,0.4905,4303.0,4302.9,1.33372158]
[1757291306530,0.4905,4303.0,4302.9,1.73312158]
[1757291306727,0.6978,4303.0,4302.9,1.73312158]
[1757291307631,0.4905,4303.0,4302.9,1.73312158]
[1757291307832,0.4905,4303.8,4303.7,0.7198]
[1757291308035,0.6978,4303.8,4303.7,0.7198]
[1757291308632,0.1993,4303.8,4303.7,0.7198]
[1757291309533,0.2912,4304.4,4303.8,0.3204]
[1757291309732,0.2912,4304.4,4304.3,1.73312158]
[1757291309733,0.6978,4304.4,4304.3,1.73312158]
[1757291309934,0.1993,4304.4,4304.3,1.73312158]
[1757291310240,0.1993,4304.4,4304.3,1.96912158]
[1757291310436,0.4905,4304.7,4304.6,0.3994]
[1757291310628,0.1993,4304.7,4304.6,0.9558]
[1757291310939,3.2078,4305.1,4304.7,0.3204]
[1757291311139,0.6978,4305.1,4305.0,0.5224]
[1757291311532,0.6978,4305.1,4305.0,0.7198]
[1757291311738,0.4066,4305.6,4305.5,0.202]
[1757291311937,0.6978,4305.6,4305.5,0.202]
[1757291312137,0.6978,4305.6,4305.5,0.7198]
[1757291312439,0.6978,4305.6,4305.5,1.57456173]
[1757291313231,0.6978,4305.6,4305.5,1.37716173]
[1757291313437,0.6978,4305.6,4305.5,1.05676173]
[1757291313743,0.6978,4305.6,4305.5,1.57456173]
[1757291313940,0.6978,4305.6,4305.5,1.69906173]
[1757291313941,0.1993,4305.6,4305.5,1.69906173]
[1757291314142,0.4905,4305.9,4305.8,0.3994]
[1757291314436,3.6983,4306.2,4306.1,0.3994]
[1757291314642,3.6983,4306.2,4306.1,1.57456173]
[1757291315543,3.9056,4306.2,4306.1,1.57456173]
[1757291315839,0.6978,4306.2,4306.1,1.57456173]
[1757291317541,0.6978,4306.2,4306.0,0.85476173]
[1757291317743,0.4066,4306.2,4306.1,0.7365]
[1757291318245,0.7034,4306.2,4306.1,0.7365]
[1757291319043,3.2078,4306.7,4306.2,0.3093]
[1757291319247,3.8925,4306.7,4306.6,0.7365]
[1757291319745,3.5957,4306.7,4306.6,0.7365]
[1757291319946,3.8925,4306.7,4306.6,0.7365]
[1757291320144,3.2078,4307.3,4306.6,0.4272]
[1757291320448,0.1939,4307.2,4307.1,0.7365]
[1757291320648,0.1939,4307.2,4307.1,0.9725]
[1757291320851,0.1939,4307.2,4307.1,0.7365]
[1757291321147,0.2968,4307.9,4307.2,0.3093]
[1757291321347,0.6847,4307.9,4307.8,1.59126173]
[1757291321751,0.2968,4308.3,4307.8,1.59126173]
[1757291321943,0.6847,4308.3,4308.2,1.59126173]
[1757291322448,0.6847,4308.3,4308.2,0.4272]
[1757291323142,0.6847,4308.3,4308.2,0.7365]
[1757291324149,0.6847,4308.3,4308.2,0.2138]
[1757291324346,0.6847,4308.3,4308.0,0.3093]
[1757291324651,0.3879,4308.3,4308.2,0.2138]
[1757291325057,0.6847,4308.3,4308.2,0.2138]
[1757291325349,0.1176,4308.0,4307.9,0.5231]
[1757291325555,0.8023,4308.0,4307.9,0.2138]
[1757291325952,0.8023,4308.0,4307.9,0.5231]
[1757291326754,0.8023,4308.0,4307.9,0.7365]
[1757291327549,0.6847,4308.0,4307.9,0.7365]
[1757291328652,0.8023,4308.0,4307.9,0.4272]
[1757291328855,0.8023,4308.0,4307.9,0.2138]
[1757291329556,0.6847,4308.0,4307.9,0.7365]
[1757291331056,0.8023,4308.0,4307.9,0.9715]
[1757291331446,0.8023,4308.0,4307.9,0.4488]
[1757291332053,0.8023,4308.0,4307.9,0.2138]
[1757291332259,0.6847,4308.0,4307.9,0.7365]
[1757291334655,0.8023,4308.0,4307.9,0.7365]
[1757291334856,0.6847,4308.0,4307.9,0.7365]
[1757291335257,0.1939,4308.1,4308.0,0.1195]
[1757291335458,0.6847,4308.1,4308.0,0.4272]
[1757291336257,3.2078,4308.4,4308.0,3.46007729]
[1757291336557,3.4017,4308.4,4308.3,0.7365]
[1757291336763,3.2078,4308.4,4308.3,1.16020258]
[1757291337256,3.2078,4308.4,4308.3,0.9715]
[1757291339963,3.4017,4308.4,4308.3,0.9715]
[1757291340466,3.6746,4308.9,4308.4,0.3093]
[1757291340656,3.6746,4308.9,4308.8,0.5231]
[1757291340657,4.0625,4308.9,4308.8,0.5231]
[1757291340858,4.62163538,4308.9,4308.8,0.7365]
[1757291341064,3.5717,4308.9,4308.8,0.7365]
[1757291341265,4.12902636,4308.9,4308.8,0.7365]
[1757291341466,4.12902636,4308.9,4308.8,3.64987729]
[1757291341666,4.42582636,4308.9,4308.8,3.64987729]
[1757291342067,3.8685,4308.9,4308.8,3.64987729]
[1757291342366,3.8685,4308.9,4308.8,2.44302602]
[1757291342561,3.5717,4308.9,4308.8,1.58976301]
[1757291342764,3.3778,4308.9,4308.8,2.44302602]
[1757291343762,2.0,4309.3,4308.8,6.67510602]
[1757291343962,2.0,4309.3,4309.2,1.58976301]
[1757291344159,0.2968,4309.7,4309.2,1.82476301]
[1757291344365,0.1939,4310.0,4309.9,0.4272]
[1757291344566,0.6847,4310.0,4309.9,1.51546301]
[1757291344764,1.23924489,4310.0,4309.9,1.82476301]
[1757291345168,3.5046,4310.3,4310.0,0.1162]
[1757291345368,3.7179,4310.3,4310.2,1.56806301]
[1757291345566,4.27236296,4310.3,4310.2,1.80306301]
[1757291345866,0.7108,4310.9,4310.8,0.4121]
[1757291346169,0.7108,4310.9,4310.8,1.80306301]
[1757291347970,0.5037,4310.9,4310.8,1.80306301]
[1757291348369,0.5037,4310.9,4310.8,0.9498]
[1757291349267,0.7108,4310.9,4310.8,0.9498]
[1757291349767,0.7108,4311.5,4311.4,0.7148]
[1757291349962,0.7108,4311.5,4311.4,0.9498]
[1757291350566,0.8293,4311.5,4311.4,0.9498]
[1757291350971,0.8293,4311.5,4311.4,0.4359]
[1757291351667,0.7108,4311.5,4311.4,0.9498]
[1757291352468,0.2133,4311.5,4311.4,0.9498]
[1757291352966,0.538,4312.0,4311.9,0.2009]
[1757291353565,0.8284,4312.0,4311.9,0.2009]
[1757291353871,0.8284,4312.0,4311.8,0.235]
[1757291355272,0.7108,4311.4,4311.3,3.2078]
[1757291355474,0.7108,4311.4,4311.3,3.6437]
[1757291355673,0.7108,4311.4,4311.3,3.9464]
[1757291355873,0.7108,4311.4,4311.3,4.1576]
[1757291356072,0.7108,4311.4,4311.3,3.9226]
[1757291356272,0.7108,4311.4,4311.3,4.1576]
[1757291358373,0.2133,4311.4,4311.3,4.1576]
[1757291359077,0.5037,4311.7,4311.6,0.4121]
[1757291359379,0.2133,4311.7,4311.6,0.9498]
[1757291359780,3.2078,4312.9,4311.6,0.6471]
[1757291359974,0.7108,4312.0,4311.9,3.9226]
[1757291360173,0.7108,4312.0,4311.9,4.1576]
[1757291360977,0.2133,4312.0,4311.9,4.1576]
[1757291361378,0.5037,4312.2,4312.1,0.7148]
[1757291361576,0.5037,4312.2,4312.1,0.9498]
[1757291363682,0.1185,4313.5,4312.9,0.4121]
[1757291363683,0.8293,4313.0,4312.9,0.4121]
[1757291363983,0.7108,4313.0,4312.9,0.7148]
[1757291364180,0.7108,4313.0,4312.9,3.62401207]
[1757291364181,0.2133,4313.0,4312.9,3.62401207]
[1757291364388,0.5037,4313.3,4313.2,0.4121]
[1757291364583,0.5037,4313.3,4313.2,4.1576]
[1757291365378,0.7108,4313.3,4313.2,4.1576]
[1757291366997,0.7108,4313.3,4313.2,3.9226]
[1757291367192,0.7108,4313.3,4313.2,4.1576]
[1757291367597,0.2904,4313.9,4313.3,0.3027]
[1757291367790,0.7108,4313.9,4313.8,0.5036]
[1757291368190,0.7108,4313.9,4313.8,0.7148]
[1757291368395,0.7108,4313.9,4313.8,1.56630431]
[1757291369095,0.7108,4313.9,4313.8,1.80130431]
[1757291369296,0.7108,4314.4,4314.3,0.7148]
[1757291369698,0.2133,4314.4,4314.3,0.7148]
[1757291369896,0.5037,4314.7,4314.6,0.4121]
[1757291370097,0.5037,4314.7,4314.6,1.80130431]
[1757291370302,0.5037,4314.7,4314.6,0.9498]
[1757291371796,0.4204,4314.7,4314.3,18.6078]
[1757291372101,0.8293,4314.5,4314.4,0.9498]
[1757291372301,0.7108,4314.5,4314.4,0.9498]
[1757291372499,0.5389,4315.0,4314.6,0.3027]
[1757291372702,0.5389,4315.0,4314.6,0.5377]
[1757291372998,0.2133,4314.7,4314.6,0.6471]
[1757291373201,0.7108,4314.7,4314.6,0.9498]
[1757291373901,0.2904,4315.4,4314.7,0.3027]
[1757291374099,0.1185,4315.5,4315.1,0.2009]
[1757291374100,0.7108,4315.2,4315.1,0.2009]
[1757291374303,0.7108,4315.2,4315.1,0.5036]
[1757291375595,0.7108,4315.2,4315.1,0.2009]
[1757291375796,0.7108,4315.2,4315.1,0.6944]
[1757291376505,0.7118,4315.7,4315.6,0.2111]
[1757291376698,0.7118,4315.7,4315.6,0.7046]
[1757291377807,0.2064,4315.7,4315.6,0.7046]
[1757291378001,0.7118,4316.1,4316.0,0.194]
[1757291378303,0.7118,4316.1,4316.0,0.7046]
[1757291379201,3.2078,4316.4,4316.3,0.2111]
[1757291379410,3.4142,4316.4,4316.3,0.9396]
[1757291379705,0.3047,4317.4,4316.3,4.6401]
[1757291379907,0.8362,4317.0,4316.9,3.2078]
[1757291380101,0.6355,4317.0,4316.9,3.4428]
[1757291380301,0.6355,4317.5,4316.9,7.4428]
[1757291380612,0.4291,4317.5,4317.4,3.2078]
[1757291380904,0.4291,4317.5,4317.4,3.4438]
[1757291381100,0.4291,4317.5,4317.4,6.72709832]
[1757291381300,0.4291,4317.5,4317.4,7.2078]
[1757291381499,0.4291,4317.5,4317.4,3.4428]
[1757291382007,0.6355,4317.5,4317.4,3.2078]
[1757291382209,0.4291,4317.5,4317.4,3.4428]
[1757291382709,0.3047,4318.1,4317.4,7.4428]
[1757291383002,0.3047,4318.4,4318.0,6.49109832]
[1757291383202,0.1244,4318.5,4318.1,0.235]
[1757291383409,0.3047,4318.4,4318.1,0.235]
[1757291384607,0.2064,4318.4,4318.0,6.49109832]
[1757291384810,0.5111,4318.2,4318.1,0.235]
[1757291385008,0.3047,4318.4,4318.1,0.235]
[1757291385210,0.1244,4318.5,4318.1,0.235]
[1757291385410,0.3047,4318.4,4318.1,0.235]
[1757291385614,0.2064,4318.4,4318.1,0.235]
[1757291385814,0.3047,4318.4,4318.1,0.235]
[1757291386007,0.1244,4318.5,4318.1,0.235]
[1757291386213,0.3047,4318.4,4318.1,0.235]
[1757291386712,0.2064,4318.4,4318.1,0.235]
[1757291386915,0.2064,4318.1,4318.0,6.49109832]
[1757291387212,0.3047,4318.1,4318.0,6.49109832]
[1757291387407,0.3047,4318.1,4318.0,6.72609832]
[1757291387613,0.5111,4318.1,4318.0,6.72609832]
[1757291387809,0.7118,4318.1,4318.0,6.72609832]
[1757291388314,0.7118,4318.1,4318.0,6.49109832]
[1757291388615,0.7118,4318.1,4318.0,3.4428]
[1757291390409,0.7118,4318.1,4318.0,1.9194]
[1757291390715,0.4071,4318.1,4318.0,0.421]
[1757291391416,4.63869001,4318.1,4317.5,0.657]
[1757291391614,0.4071,4318.1,4317.5,0.657]
[1757291391819,0.405,4318.9,4317.5,0.8681]
[1757291392015,0.77474298,4318.8,4317.5,0.5686]
[1757291392210,0.23158,4318.8,4317.6,0.2111]
[1757291392409,0.23158,4318.7,4317.7,0.2111]
[1757291392612,0.405,4318.9,4317.8,0.5106]
[1757291392812,0.5434963,4318.8,4317.8,0.5106]
[1757291393017,0.23157,4318.7,4317.8,0.5106]
[1757291393218,0.23157,4318.8,4317.8,0.5106]
[1757291393418,0.54390973,4318.7,4318.5,0.3326]
[1757291393615,0.17,4318.9,4318.8,0.2111]
[1757291393811,0.17,4318.9,4318.8,0.7046]
[1757291397609,0.17,4318.9,4318.8,0.88751221]
[1757291398018,2.0,4319.3,4319.2,0.4051]
[1757291398206,2.0,4319.3,4319.2,4.1484]
[1757291398610,2.4071,4319.3,4319.2,4.1484]
[1757291398813,2.5772,4319.3,4318.7,0.2995]
[1757291399011,2.0,4319.3,4319.0,0.1215]
[1757291399212,0.2064,4319.1,4319.0,0.3326]
[1757291399415,0.1701,4319.0,4318.7,0.236]
[1757291399719,0.4071,4318.8,4318.7,0.7466]
[1757291399917,0.4071,4318.8,4318.7,0.9406]
[1757291400113,0.4071,4318.8,4318.7,0.7046]
[1757291400319,0.4071,4318.8,4318.7,0.2995]
[1757291400516,0.4071,4318.8,4318.7,0.5106]
[1757291400820,0.4071,4318.8,4318.7,0.7046]
[1757291401020,0.54518533,4318.8,4318.7,0.7046]
[1757291401208,0.54520935,4319.2,4319.0,0.1215]
[1757291401416,0.54520935,4319.1,4319.0,0.8261]
[1757291401614,2.0,4319.3,4319.2,0.7046]
[1757291401820,2.0,4319.3,4319.2,0.9406]
[1757291402418,2.54612514,4319.3,4319.2,0.9406]
[1757291402715,0.1701,4319.2,4319.0,3.3293]
[1757291402916,0.54612514,4319.1,4319.0,3.7344]
[1757291403312,2.0,4319.3,4319.2,0.4051]
[1757291403516,2.0,4319.3,4319.2,0.9406]
[1757291403919,1.6779,4319.3,4319.2,4.9406]
[1757291404119,0.8816,4319.3,4319.2,4.9406]
[1757291404315,3.2078,4320.4,4319.2,4.9406]
[1757291404316,0.5111,4320.2,4319.2,4.236]
[1757291404509,0.1244,4320.5,4320.1,3.2078]
[1757291404720,0.3047,4320.3,4320.2,0.236]
[1757291404915,0.7118,4320.2,4320.1,3.2078]
[1757291405115,1.2587143,4320.2,4320.1,3.2078]
[1757291405722,0.6902,4319.4,4319.3,3.2078]
[1757291405919,0.1212,4319.0,4318.8,3.4438]
[1757291406219,0.54498509,4318.9,4318.8,3.4438]
[1757291406523,0.84018509,4318.9,4318.8,3.4438]
[1757291407023,0.54498509,4318.9,4318.8,3.4438]
[1757291407415,0.54498509,4318.9,4318.8,11.01382369]
[1757291407614,0.2952,4319.7,4318.8,11.24536369]
[1757291407820,0.2952,4319.9,4319.6,3.2078]
[1757291408024,0.84101634,4319.8,4319.7,0.236]
[1757291408324,0.54581634,4319.8,4319.7,0.236]
[1757291408616,0.54581634,4319.8,4319.7,0.52291479]
[1757291409225,0.54581634,4319.8,4319.7,0.52290056]
[1757291409621,0.54581634,4319.8,4319.7,4.52290056]
[1757291410319,0.84101634,4319.8,4319.7,0.28690056]
[1757291410626,1.23601634,4319.8,4319.7,0.52290056]
[1757291410816,1.03421634,4319.8,4319.7,0.52290056]
[1757291411016,0.84101634,4319.8,4319.7,0.52290056]
[1757291411621,1.23601634,4319.8,4319.7,0.52290056]
[1757291412327,1.23601634,4319.8,4319.7,0.28690056]
[1757291412525,1.23601634,4319.8,4319.7,0.52390056]
[1757291412724,0.2952,4319.7,4319.6,3.2078]
[1757291413023,1.23601634,4319.7,4319.6,3.2078]
[1757291413421,5.23601634,4319.7,4319.5,3.2078]
[1757291413723,0.6902,4319.1,4319.0,2.8859]
[1757291413918,1.23601634,4319.1,4319.0,2.8859]
[1757291414119,0.1212,4318.5,4318.2,0.237]
[1757291414321,0.6902,4318.3,4318.2,0.4403]
[1757291414516,1.23601634,4318.3,4318.2,0.72744501]
[1757291415721,1.23601634,4318.3,4318.2,0.28714501]
[1757291415926,1.23601634,4318.3,4318.2,0.52414501]
[1757291416222,5.23601634,4318.3,4318.2,0.28714501]
[1757291416418,0.6902,4318.1,4318.0,3.2078]
[1757291416618,1.23601634,4318.1,4318.0,3.8996]
[1757291417522,0.22391634,4318.1,4318.0,8.2531]
[1757291417723,1.53440379,4318.9,4318.8,0.2868]
[1757291418024,1.23920379,4319.1,4318.8,0.237]
[1757291418214,1.23920379,4319.1,4318.9,0.2868]
[1757291418421,1.23920379,4319.1,4319.0,0.237]
[1757291418617,1.23920379,4319.1,4318.6,3.2078]
[1757291418819,1.53440379,4318.9,4318.7,0.237]
[1757291419017,0.2952,4318.7,4318.6,3.2078]
[1757291420220,4.2952,4318.7,4318.6,3.2078]
[1757291420419,0.2952,4318.7,4318.6,3.2078]
[1757291420727,1.23922761,4319.3,4318.7,0.2868]
[1757291420928,0.1212,4319.5,4318.9,3.28329832]
[1757291421225,0.2952,4319.4,4319.0,0.237]
[1757291421721,0.2952,4319.4,4319.1,0.237]
[1757291421722,0.2952,4319.3,4319.1,0.237]
[1757291421923,0.2952,4318.9,4318.6,3.2078]
[1757291422114,0.2952,4318.9,4318.8,0.237]
[1757291422718,0.2952,4318.9,4318.6,3.2078]
[1757291422923,0.2952,4318.7,4318.6,3.2078]
[1757291423123,4.2952,4318.7,4318.6,3.2078]
[1757291423323,4.5322,4318.7,4318.6,2.2069]
[1757291423630,4.5322,4318.7,4317.8,3.2078]
[1757291423828,3.74,4318.7,4317.7,0.5301]
[1757291424129,3.74,4318.7,4317.8,0.2931]
[1757291424622,3.2078,4318.2,4317.5,0.1165]
[1757291424929,0.237,4318.1,4317.4,0.2931]
[1757291425423,3.2078,4318.2,4317.5,0.1165]
[1757291425623,3.4458,4318.2,4318.0,0.1165]
[1757291425827,3.4458,4318.2,4318.1,0.2931]
[1757291426030,3.2078,4318.2,4318.1,0.2931]
[1757291426424,3.2078,4318.7,4318.6,0.2931]
[1757291426724,3.2078,4318.7,4318.0,3.63779832]
[1757291426725,3.2078,4318.7,4318.0,0.1165]
[1757291426923,3.2078,4318.7,4318.1,0.2931]
[1757291428818,3.2078,4318.7,4318.6,0.2931]
[1757291429724,0.238,4319.3,4318.6,0.2931]
[1757291429924,0.53996191,4319.2,4319.0,0.1165]
[1757291430127,0.53995601,4319.1,4319.0,0.1165]
[1757291430430,3.2078,4319.6,4319.5,0.4096]
[1757291430628,3.74782475,4319.6,4319.0,0.1165]
[1757291430828,0.54002475,4319.5,4319.0,0.1165]
[1757291431029,0.77802475,4319.5,4319.1,0.2931]
[1757291431228,0.54002475,4319.4,4319.1,0.2931]
[1757291431422,0.238,4319.5,4319.0,0.1165]
[1757291431631,0.238,4319.5,4319.1,0.2931]
[1757291431823,0.54004305,4319.4,4318.6,0.2931]
[1757291432028,0.54003784,4319.3,4318.6,0.2931]
[1757291432228,0.238,4319.5,4318.6,0.2931]
[1757291432229,0.53995216,4319.2,4318.6,0.2931]
[1757291432427,3.98575216,4319.1,4318.6,0.2931]
[1757291432624,0.53995216,4319.0,4318.5,0.1165]
[1757291432826,3.2078,4318.6,4318.1,0.2931]
[1757291433033,3.2078,4318.6,4318.0,0.1165]
[1757291433034,0.77790946,4318.5,4318.0,0.1165]
[1757291433221,0.238,4318.5,4318.0,0.1165]
[1757291433534,0.238,4318.5,4317.7,0.2931]
[1757291434232,0.53980322,4318.4,4317.7,0.2931]
[1757291434436,0.238,4318.5,4317.7,0.2931]
[1757291434730,3.2078,4318.0,4317.6,0.0694]
[1757291434931,3.2078,4318.0,4317.7,0.2931]
[1757291435134,3.2078,4318.0,4317.6,0.0694]
[1757291435330,3.2078,4318.0,4317.7,0.3076]
[1757291435531,3.2078,4318.0,4317.6,0.0694]
[1757291435736,0.53967888,4317.9,4317.6,0.0694]
[1757291435931,0.77767888,4317.8,4317.7,0.3076]
[1757291436637,0.238,4317.8,4317.7,0.3076]
[1757291437648,4.238,4317.8,4317.6,0.0694]
[1757291437838,4.238,4317.8,4317.6,0.377]
[1757291438042,4.238,4317.8,4317.7,0.3076]
[1757291438340,4.77751686,4317.8,4317.7,0.3076]
[1757291438540,4.77751686,4317.8,4316.6,0.3076]
[1757291438736,3.2078,4317.1,4316.6,0.3076]
[1757291438940,0.239,4317.0,4316.5,0.1165]
[1757291439546,0.239,4317.0,4316.6,0.3076]
[1757291440048,0.239,4317.0,4316.2,0.3076]
[1757291442047,0.7710906,4316.9,4315.8,0.3076]
[1757291442251,3.2078,4316.0,4315.8,0.3076]
[1757291442547,0.239,4315.9,4315.5,0.1234]
[1757291442851,0.239,4315.9,4315.6,0.3076]
[1757291443450,0.239,4315.9,4315.5,0.1234]
[1757291443851,0.239,4315.9,4315.6,0.3076]
[1757291444146,0.239,4315.9,4315.3,3.2078]
[1757291445156,3.2078,4316.0,4315.5,0.1234]
[1757291445444,0.239,4315.9,4315.5,0.1234]
[1757291445649,0.239,4315.9,4315.6,0.3076]
[1757291446054,0.239,4315.9,4315.5,0.1234]
[1757291446346,0.239,4315.9,4315.6,0.3076]
[1757291446551,0.239,4315.9,4315.5,0.1234]
[1757291447053,0.239,4315.9,4315.6,0.3076]
[1757291447247,3.2078,4316.0,4315.6,0.3076]
[1757291447448,3.2078,4316.0,4315.7,0.3076]
[1757291447648,0.239,4316.3,4316.1,0.3076]
[1757291447847,0.239,4316.5,4316.1,0.3076]
[1757291449247,0.239,4316.5,4316.0,0.1234]
[1757291449455,0.239,4316.5,4316.1,0.3076]
[1757291449955,0.239,4316.5,4316.2,0.0695]
[1757291450252,3.4468,4316.5,4316.3,0.3076]
[1757291450453,3.4468,4316.5,4316.2,0.0695]
[1757291450845,3.4468,4316.5,4316.3,0.3076]
[1757291452154,3.4468,4316.5,4316.2,0.0695]
[1757291454148,3.4468,4316.5,4315.0,0.1234]
[1757291454149,4.0,4316.4,4315.1,0.3076]
[1757291454351,3.2078,4315.4,4315.1,0.3076]
[1757291454653,0.239,4315.3,4315.0,0.1234]
[1757291455057,0.239,4315.3,4315.1,0.3076]
[1757291455450,0.239,4315.3,4315.0,0.1234]
[1757291456952,0.239,4315.3,4315.1,0.3076]
[1757291457647,3.2078,4315.4,4315.1,0.3076]
[1757291457958,3.4468,4315.4,4315.1,0.3076]
[1757291458360,3.4468,4315.4,4315.0,0.1234]
[1757291459058,3.4468,4315.4,4315.1,0.3076]
[1757291459359,3.4468,4315.4,4315.0,0.1234]
[1757291460156,3.4468,4315.4,4314.4,0.0695]
[1757291460358,3.4468,4315.4,4314.6,0.3076]
[1757291460862,0.239,4315.3,4315.1,0.3076]
[1757291461559,0.239,4315.3,4315.0,0.1234]
[1757291461755,0.239,4315.3,4315.1,0.3076]
[1757291461956,0.239,4315.3,4315.0,0.1234]
[1757291462153,3.2078,4315.4,4315.1,0.3076]
[1757291462357,0.239,4315.3,4315.1,0.3076]
[1757291462555,3.2078,4315.4,4315.1,0.3076]
[1757291462751,3.2078,4315.4,4315.2,0.3076]
[1757291462957,0.239,4315.7,4315.5,0.1234]
[1757291463351,0.239,4315.7,4315.6,0.3076]
[1757291463756,3.2078,4316.0,4315.6,0.3076]
[1757291463957,0.239,4315.9,4315.6,0.3076]
[1757291464562,3.2078,4316.5,4315.9,0.3076]
[1757291464858,3.2078,4317.1,4316.4,0.3076]
[1757291465055,3.4468,4317.1,4317.0,0.4449]
[1757291465261,3.2078,4317.1,4317.0,0.4449]
[1757291465766,3.2078,4317.7,4317.5,0.121]
[1757291466066,3.4468,4317.7,4317.6,0.3215]
[1757291467560,3.4468,4317.7,4317.0,0.1234]
[1757291467764,3.7387,4317.7,4317.0,0.4449]
[1757291469860,3.4468,4317.7,4317.0,0.3215]
[1757291470068,0.1076,4317.0,4316.1,0.3215]
[1757291470264,3.2078,4316.7,4316.1,0.3215]
[1757291470465,0.239,4316.6,4316.0,0.4449]
[1757291470865,0.239,4316.6,4316.0,0.3215]
[1757291471062,0.2919,4316.4,4315.5,0.4425]
[1757291471265,3.2078,4316.2,4315.5,0.4425]
[1757291471567,0.2919,4316.1,4315.0,0.36]
[1757291471769,0.2919,4315.9,4315.0,3.8893]
[1757291471962,0.2919,4315.9,4315.1,0.3215]
[1757291472169,0.239,4316.0,4315.1,0.3215]
[1757291472471,0.2919,4315.9,4315.1,0.3215]
[1757291473565,0.239,4316.0,4315.1,0.3215]
[1757291473966,0.2919,4315.9,4315.1,0.3215]
[1757291474575,3.4997,4315.2,4314.6,0.3215]
[1757291474866,0.239,4315.1,4314.6,0.3215]
[1757291475066,0.239,4315.1,4314.5,0.4425]
[1757291475573,0.239,4315.1,4314.5,0.121]
[1757291475870,0.239,4315.1,4315.0,0.4425]
[1757291476168,3.2078,4316.2,4315.6,0.3215]
[1757291476366,3.2078,4316.2,4316.1,0.3215]
[1757291476968,0.239,4316.9,4316.1,0.3215]
[1757291477268,3.2078,4317.2,4316.5,0.121]
[1757291477473,0.239,4317.1,4317.0,0.121]
[1757291478068,0.239,4317.1,4317.0,0.4425]
[1757291479276,3.4468,4317.2,4317.1,0.3215]
[1757291479876,3.7387,4317.2,4316.6,0.3215]
[1757291480076,0.2919,4317.1,4316.1,0.3215]
[1757291480772,3.2078,4317.2,4316.1,0.3215]
[1757291480979,3.4468,4317.2,4316.1,0.3215]
[1757291481178,3.4468,4317.2,4316.3,0.3215]
[1757291481379,0.239,4317.2,4316.3,0.3215]
[1757291484280,0.239,4317.2,4316.4,0.23166]
[1757291484476,0.2919,4317.1,4316.5,0.121]
[1757291485776,0.2919,4316.6,4316.0,3.3288]
[1757291485977,0.239,4316.5,4316.0,3.3288]
[1757291486282,0.2919,4316.4,4316.1,0.3215]
[1757291486585,0.239,4316.5,4316.1,0.3215]
[1757291487282,0.239,4316.5,4316.0,3.3288]
[1757291487583,0.2919,4316.4,4316.0,3.3288]
[1757291487780,0.239,4316.5,4316.0,3.2078]
[1757291488085,0.2919,4315.9,4315.7,0.0695]
[1757291488285,0.5309,4315.8,4315.7,0.0695]
[1757291488986,0.5309,4315.8,4314.9,0.3215]
[1757291488987,4.5309,4315.8,4314.9,0.3215]
[1757291489279,0.2533,4315.5,4314.9,0.3215]
[1757291489481,0.2533,4315.5,4314.0,0.121]
[1757291489482,3.2078,4315.0,4314.5,0.4425]
[1757291489682,0.2533,4314.8,4314.0,3.3288]
[1757291489984,0.2533,4314.8,4314.1,0.3215]
[1757291491385,0.239,4314.9,4314.1,0.3215]
[1757291491786,0.2533,4314.8,4314.1,0.3215]
[1757291496194,0.239,4314.9,4314.1,0.3215]
[1757291496394,3.2078,4314.5,4314.1,0.3215]
[1757291496595,0.2531,4314.3,4314.1,0.3215]
[1757291497090,0.239,4314.4,4314.1,0.3013]
[1757291498197,3.2078,4314.5,4314.4,0.4233]
[1757291498492,3.2078,4314.5,4314.4,0.7246]
[1757291499993,0.4457,4314.9,4314.8,0.2088]
[1757291500199,0.4457,4314.9,4314.8,0.7246]
[1757291501298,0.6638,4314.6,4314.2,0.3013]
[1757291501498,0.4107,4314.6,4314.5,0.2088]
[1757291501699,0.4107,4314.6,4314.5,0.632]
[1757291502094,0.239,4314.9,4314.8,0.4233]
[1757291502399,0.4457,4314.9,4314.8,0.7246]
[1757291502992,0.2067,4314.9,4314.8,0.7246]
[1757291503193,0.239,4315.0,4314.9,0.3013]
[1757291503392,0.239,4315.0,4314.9,0.7246]
[1757291506006,0.4107,4314.6,4314.5,0.4232]
[1757291506305,0.4107,4314.6,4314.5,0.632]
[1757291508606,0.4107,4314.6,4314.0,3.3288]
[1757291508808,0.6638,4314.6,4314.1,0.3013]
[1757291509106,0.6638,4314.6,4314.5,0.2088]
[1757291509107,0.4107,4314.6,4314.5,0.2088]
[1757291509309,0.239,4315.0,4314.5,0.5452]
[1757291509514,3.2078,4315.2,4315.1,0.7246]
[1757291509515,3.4468,4315.2,4315.1,0.7246]
[1757291511214,3.2078,4315.8,4315.7,0.7246]
[1757291511508,3.2078,4315.8,4315.7,0.72373661]
[1757291512808,3.4145,4315.8,4315.7,0.72373661]
[1757291513317,3.2078,4315.8,4315.7,0.72373661]
[1757291513616,3.4145,4315.8,4315.7,0.72373661]
[1757291515815,3.6185,4315.8,4315.7,0.72373661]
[1757291516913,0.6647,4315.2,4314.7,0.3013]
[1757291517115,0.2067,4314.7,4314.6,0.5101]